[Event "Titled Tuesday Blitz July 11 Early 2023"]
[White "Skiadopoulos, Nikolaos"]
[Black "Szyszylo, Rafal"]
[WhiteFideId "4200772"]
[BlackFideId "1109626"]
[WhiteElo "1914"]
[BlackElo "2413"]
[Result "0-1"]
[Round "2"]
[TimeControl "180+2"]
[Date "2023.07.11"]
[WhiteClock "0:00:00"]
[BlackClock "0:00:15"]
[Board "230"]

1. e4 {[%clk 0:02:59]}  g6 {[%clk 0:03:00]} 2. d4 {[%clk 0:02:58]}  d6 {[%clk 0:03:01]} 3. Be2 {[%clk 0:02:53]}  Nf6 {[%clk 0:03:01]} 4. Nc3 {[%clk 0:02:52]}  c6 {[%clk 0:03:00]} 5. a4 {[%clk 0:02:51]}  Nbd7 {[%clk 0:03:00]} 6. f4 {[%clk 0:02:48]}  e5 {[%clk 0:02:59]} 7. dxe5 {[%clk 0:02:47]}  dxe5 {[%clk 0:02:59]} 8. fxe5 {[%clk 0:02:46]}  Nxe5 {[%clk 0:02:59]} 9. Qxd8+ {[%clk 0:02:46]}  Kxd8 {[%clk 0:03:00]} 10. Bg5 {[%clk 0:02:45]}  Bg7 {[%clk 0:02:59]} 11. O-O-O+ {[%clk 0:02:42]}  Kc7 {[%clk 0:02:52]} 12. Bf4 {[%clk 0:02:39]}  Ng4 {[%clk 0:02:46]} 13. Bxg4 {[%clk 0:02:25]}  Bxg4 {[%clk 0:02:47]} 14. Nf3 {[%clk 0:02:25]}  Rae8 {[%clk 0:02:26]} 15. Rd2 {[%clk 0:02:03]}  Kb6 {[%clk 0:02:13]} 16. Nxe5 {[%clk 0:01:49]}  Bxe5 {[%clk 0:02:13]} 17. Be3+ {[%clk 0:01:48]}  Kc7 {[%clk 0:01:55]} 18. h3 {[%clk 0:01:32]}  Be6 {[%clk 0:01:49]} 19. Ne2 {[%clk 0:01:19]}  a5 {[%clk 0:01:30]} 20. Rhd1 {[%clk 0:01:14]}  Re7 {[%clk 0:01:08]} 21. Nd4 {[%clk 0:01:02]}  Bc8 {[%clk 0:01:05]} 22. Nb3 {[%clk 0:00:59]}  b6 {[%clk 0:01:03]} 23. c3 {[%clk 0:00:54]}  f5 {[%clk 0:00:50]} 24. exf5 {[%clk 0:00:45]}  Bxf5 {[%clk 0:00:51]} 25. Nd4 {[%clk 0:00:40]}  Be4 {[%clk 0:00:50]} 26. Nf3 {[%clk 0:00:37]}  Bxf3 {[%clk 0:00:33]} 27. gxf3 {[%clk 0:00:35]}  Rf8 {[%clk 0:00:22]} 28. Rf2 {[%clk 0:00:20]}  Bxc3 {[%clk 0:00:20]} 29. Bxb6+ {[%clk 0:00:15]}  Kxb6 {[%clk 0:00:21]} 30. bxc3 {[%clk 0:00:14]}  Re3 {[%clk 0:00:21]} 31. Rd7 {[%clk 0:00:13]}  Rxc3+ {[%clk 0:00:17]} 32. Kb2 {[%clk 0:00:05]}  Rfxf3 {[%clk 0:00:17]} 33. Rxf3 {[%clk 0:00:05]}  Rxf3 {[%clk 0:00:17]} 34. Rxh7 {[%clk 0:00:05]}  Kc5 {[%clk 0:00:16]} 35. Rg7 {[%clk 0:00:00]}  Rg3 {[%clk 0:00:15]} 0-1


[Site "https://www.chess.com"]

[Event "Titled Tuesday Blitz July 11 Early 2023"]
[White "Castillo Pena, Patricia Evarista"]
[Black "Estrada Nieto, Julian"]
[WhiteFideId "6412106"]
[BlackFideId "5101018"]
[WhiteElo "1835"]
[BlackElo "2412"]
[Result "0-1"]
[Round "2"]
[TimeControl "180+2"]
[Date "2023.07.11"]
[WhiteClock "0:00:15"]
[BlackClock "0:01:13"]
[Board "231"]

1. d4 {[%clk 0:03:00]}  d5 {[%clk 0:02:58]} 2. Nf3 {[%clk 0:03:00]}  Nf6 {[%clk 0:02:58]} 3. e3 {[%clk 0:03:00]}  e6 {[%clk 0:02:58]} 4. Bd3 {[%clk 0:03:00]}  c5 {[%clk 0:02:57]} 5. b3 {[%clk 0:03:00]}  Nc6 {[%clk 0:02:58]} 6. Bb2 {[%clk 0:03:00]}  Bd6 {[%clk 0:02:58]} 7. O-O {[%clk 0:03:00]}  O-O {[%clk 0:02:58]} 8. Nbd2 {[%clk 0:03:00]}  cxd4 {[%clk 0:02:54]} 9. exd4 {[%clk 0:03:00]}  Qe7 {[%clk 0:02:53]} 10. a3 {[%clk 0:02:59]}  b6 {[%clk 0:02:50]} 11. c4 {[%clk 0:02:58]}  Bb7 {[%clk 0:02:49]} 12. Re1 {[%clk 0:02:58]}  Rfd8 {[%clk 0:02:45]} 13. Ne5 {[%clk 0:02:55]}  Rac8 {[%clk 0:02:34]} 14. Qe2 {[%clk 0:02:49]}  Na5 {[%clk 0:02:18]} 15. b4 {[%clk 0:02:42]}  Nxc4 {[%clk 0:02:17]} 16. Ndxc4 {[%clk 0:02:41]}  dxc4 {[%clk 0:02:17]} 17. Nxc4 {[%clk 0:02:32]}  Nd5 {[%clk 0:02:09]} 18. Nxd6 {[%clk 0:02:25]}  Qxd6 {[%clk 0:02:06]} 19. Qh5 {[%clk 0:02:12]}  g6 {[%clk 0:02:00]} 20. Qg4 {[%clk 0:02:06]}  Qf4 {[%clk 0:01:55]} 21. Qxf4 {[%clk 0:01:56]}  Nxf4 {[%clk 0:01:55]} 22. Be4 {[%clk 0:01:39]}  Bxe4 {[%clk 0:01:54]} 23. Rxe4 {[%clk 0:01:39]}  Nd3 {[%clk 0:01:49]} 24. Re2 {[%clk 0:01:22]}  Nxb2 {[%clk 0:01:44]} 25. Rxb2 {[%clk 0:01:23]}  Rxd4 {[%clk 0:01:43]} 26. Kf1 {[%clk 0:01:21]}  Rdc4 {[%clk 0:01:41]} 27. Rab1 {[%clk 0:01:19]}  Rc2 {[%clk 0:01:40]} 28. a4 {[%clk 0:01:16]}  Kg7 {[%clk 0:01:39]} 29. a5 {[%clk 0:01:15]}  b5 {[%clk 0:01:35]} 30. Rb3 {[%clk 0:00:48]}  R8c3 {[%clk 0:01:28]} 31. Rxc3 {[%clk 0:00:45]}  Rxc3 {[%clk 0:01:28]} 32. Ke2 {[%clk 0:00:45]}  Rc4 {[%clk 0:01:27]} 33. Kd3 {[%clk 0:00:44]}  Kf6 {[%clk 0:01:26]} 34. g3 {[%clk 0:00:39]}  Ke5 {[%clk 0:01:26]} 35. f4+ {[%clk 0:00:39]}  Kd5 {[%clk 0:01:25]} 36. Rb2 {[%clk 0:00:35]}  a6 {[%clk 0:01:24]} 37. Ke3 {[%clk 0:00:24]}  Rc3+ {[%clk 0:01:15]} 38. Kd2 {[%clk 0:00:15]}  Kc4 {[%clk 0:01:13]} 0-1


[Site "https://www.chess.com"]

[Event "Titled Tuesday Blitz July 11 Early 2023"]
[White "Tanmay Jain"]
[Black "Gyulamiryan-koryun"]
[WhiteFideId "45015481"]
[WhiteElo "2410"]
[BlackElo "1808"]
[Result "1-0"]
[Round "2"]
[TimeControl "180+2"]
[Date "2023.07.11"]
[WhiteClock "0:00:19"]
[BlackClock "0:00:00"]
[Board "232"]

1. e4 {[%clk 0:03:00]}  e5 {[%clk 0:02:59]} 2. Nf3 {[%clk 0:03:01]}  Nc6 {[%clk 0:02:59]} 3. Nc3 {[%clk 0:02:59]}  Nf6 {[%clk 0:02:57]} 4. d4 {[%clk 0:02:59]}  exd4 {[%clk 0:02:57]} 5. Nxd4 {[%clk 0:02:59]}  Bb4 {[%clk 0:02:51]} 6. Qd3 {[%clk 0:02:56]}  Bxc3+ {[%clk 0:02:49]} 7. bxc3 {[%clk 0:02:56]}  Ne5 {[%clk 0:02:49]} 8. Qe2 {[%clk 0:02:53]}  O-O {[%clk 0:02:46]} 9. g3 {[%clk 0:02:51]}  d5 {[%clk 0:02:42]} 10. Bg2 {[%clk 0:02:34]}  dxe4 {[%clk 0:02:41]} 11. O-O {[%clk 0:02:32]}  Re8 {[%clk 0:02:35]} 12. h3 {[%clk 0:02:27]}  c5 {[%clk 0:02:33]} 13. Nb5 {[%clk 0:02:24]}  Nf3+ {[%clk 0:02:32]} 14. Kh1 {[%clk 0:02:17]}  a6 {[%clk 0:02:27]} 15. Rd1 {[%clk 0:02:17]}  Qb6 {[%clk 0:02:23]} 16. Nd6 {[%clk 0:02:16]}  Re6 {[%clk 0:02:20]} 17. Nxe4 {[%clk 0:01:47]}  Nxe4 {[%clk 0:02:18]} 18. Qxf3 {[%clk 0:01:46]}  Nf6 {[%clk 0:02:06]} 19. Bg5 {[%clk 0:01:42]}  h6 {[%clk 0:01:51]} 20. Rab1 {[%clk 0:01:39]}  Qc6 {[%clk 0:01:51]} 21. Qxc6 {[%clk 0:01:34]}  bxc6 {[%clk 0:01:47]} 22. Be3 {[%clk 0:01:34]}  Nd5 {[%clk 0:01:37]} 23. Bd2 {[%clk 0:01:29]}  Re2 {[%clk 0:01:31]} 24. c4 {[%clk 0:01:18]}  Nb4 {[%clk 0:01:19]} 25. Bxb4 {[%clk 0:01:18]}  cxb4 {[%clk 0:01:19]} 26. Rxb4 {[%clk 0:01:15]}  Bf5 {[%clk 0:01:08]} 27. Kg1 {[%clk 0:00:56]}  Rxc2 {[%clk 0:01:03]} 28. g4 {[%clk 0:00:51]}  Be6 {[%clk 0:01:00]} 29. Bxc6 {[%clk 0:00:45]}  Rc8 {[%clk 0:00:54]} 30. Bb7 {[%clk 0:00:45]}  R8xc4 {[%clk 0:00:52]} 31. Rxc4 {[%clk 0:00:45]}  Rxc4 {[%clk 0:00:50]} 32. Bxa6 {[%clk 0:00:41]}  Ra4 {[%clk 0:00:45]} 33. Rd8+ {[%clk 0:00:41]}  Kh7 {[%clk 0:00:45]} 34. Bd3+ {[%clk 0:00:41]}  g6 {[%clk 0:00:45]} 35. Kg2 {[%clk 0:00:37]}  Bxa2 {[%clk 0:00:40]} 36. Kg3 {[%clk 0:00:35]}  Ra3 {[%clk 0:00:37]} 37. f3 {[%clk 0:00:36]}  Be6 {[%clk 0:00:36]} 38. Rd6 {[%clk 0:00:34]}  Rc3 {[%clk 0:00:35]} 39. h4 {[%clk 0:00:33]}  Bc4 {[%clk 0:00:32]} 40. Be4 {[%clk 0:00:33]}  Be6 {[%clk 0:00:29]} 41. Rd8 {[%clk 0:00:32]}  Kg7 {[%clk 0:00:28]} 42. Rd6 {[%clk 0:00:31]}  Bb3 {[%clk 0:00:26]} 43. Kf4 {[%clk 0:00:30]}  Rc4 {[%clk 0:00:23]} 44. Rb6 {[%clk 0:00:30]}  Bc2 {[%clk 0:00:19]} 45. Rc6 {[%clk 0:00:27]}  Rxc6 {[%clk 0:00:14]} 46. Bxc6 {[%clk 0:00:28]}  f6 {[%clk 0:00:13]} 47. Ke3 {[%clk 0:00:26]}  Bd1 {[%clk 0:00:12]} 48. Kd4 {[%clk 0:00:26]}  h5 {[%clk 0:00:09]} 49. gxh5 {[%clk 0:00:21]}  gxh5 {[%clk 0:00:09]} 50. Ke3 {[%clk 0:00:22]}  Kg6 {[%clk 0:00:09]} 51. Kf4 {[%clk 0:00:22]}  Bc2 {[%clk 0:00:08]} 52. Be8+ {[%clk 0:00:22]}  Kh6 {[%clk 0:00:07]} 53. Bd7 {[%clk 0:00:22]}  Bg6 {[%clk 0:00:06]} 54. Bf5 {[%clk 0:00:22]}  Bf7 {[%clk 0:00:06]} 55. Be4 {[%clk 0:00:22]}  Be6 {[%clk 0:00:06]} 56. Bc6 {[%clk 0:00:22]}  Bb3 {[%clk 0:00:05]} 57. Kf5 {[%clk 0:00:22]}  Kg7 {[%clk 0:00:04]} 58. Be4 {[%clk 0:00:21]}  Bf7 {[%clk 0:00:03]} 59. Kf4 {[%clk 0:00:21]}  Bc4 {[%clk 0:00:02]} 60. Bf5 {[%clk 0:00:21]}  Be2 {[%clk 0:00:02]} 61. Ke3 {[%clk 0:00:21]}  Bc4 {[%clk 0:00:02]} 62. Kf4 {[%clk 0:00:21]}  Bf7 {[%clk 0:00:02]} 63. Be4 {[%clk 0:00:22]}  Bg6 {[%clk 0:00:02]} 64. Bd5 {[%clk 0:00:21]}  Bc2 {[%clk 0:00:01]} 65. Bc6 {[%clk 0:00:20]}  f5 {[%clk 0:00:01]} 66. Be8 {[%clk 0:00:19]}  Kh6 {[%clk 0:00:01]} 67. Ke5 {[%clk 0:00:19]}  f4 {[%clk 0:00:01]} 68. Kxf4 {[%clk 0:00:19]}  Bd1 {[%clk 0:00:00]} 69. Bc6 {[%clk 0:00:19]} 1-0


[Site "https://www.chess.com"]

[Event "Titled Tuesday Blitz July 11 Early 2023"]
[White "NikaVolkov"]
[Black "Nakamura, Hikaru"]
[BlackFideId "2016192"]
[WhiteElo "2692"]
[BlackElo "3226"]
[Result "0-1"]
[Round "3"]
[TimeControl "180+2"]
[Date "2023.07.11"]
[WhiteClock "0:00:00"]
[BlackClock "0:01:04"]
[Board "1"]

1. d4 {[%clk 0:03:00]}  a6 {[%clk 0:03:00]} 2. Nf3 {[%clk 0:03:00]}  e6 {[%clk 0:03:00]} 3. c4 {[%clk 0:03:00]}  d5 {[%clk 0:02:56]} 4. cxd5 {[%clk 0:02:56]}  exd5 {[%clk 0:02:56]} 5. Nc3 {[%clk 0:02:56]}  Nf6 {[%clk 0:02:55]} 6. Bf4 {[%clk 0:02:53]}  Bd6 {[%clk 0:02:54]} 7. Bg5 {[%clk 0:02:53]}  c6 {[%clk 0:02:51]} 8. e3 {[%clk 0:02:53]}  Bf5 {[%clk 0:02:50]} 9. Ne5 {[%clk 0:02:51]}  Nbd7 {[%clk 0:02:50]} 10. f4 {[%clk 0:02:51]}  h6 {[%clk 0:02:50]} 11. Bh4 {[%clk 0:02:51]}  Qb6 {[%clk 0:02:49]} 12. Qd2 {[%clk 0:02:21]}  Bb4 {[%clk 0:02:43]} 13. Nxd7 {[%clk 0:02:13]}  Nxd7 {[%clk 0:02:24]} 14. Bd3 {[%clk 0:02:12]}  Bxd3 {[%clk 0:02:24]} 15. Qxd3 {[%clk 0:02:12]}  Qb5 {[%clk 0:02:21]} 16. Ke2 {[%clk 0:02:00]}  Bxc3 {[%clk 0:02:03]} 17. bxc3 {[%clk 0:01:59]}  Qb2+ {[%clk 0:01:58]} 18. Qd2 {[%clk 0:01:56]}  Qxd2+ {[%clk 0:01:57]} 19. Kxd2 {[%clk 0:01:57]}  Nb6 {[%clk 0:01:57]} 20. Kd3 {[%clk 0:01:37]}  Na4 {[%clk 0:01:51]} 21. g4 {[%clk 0:01:05]}  Kd7 {[%clk 0:01:39]} 22. Rac1 {[%clk 0:01:01]}  Rae8 {[%clk 0:01:38]} 23. Rhe1 {[%clk 0:00:58]}  Nb2+ {[%clk 0:01:36]} 24. Kc2 {[%clk 0:00:57]}  Nc4 {[%clk 0:01:37]} 25. Kd3 {[%clk 0:00:58]}  Re4 {[%clk 0:01:32]} 26. Bf2 {[%clk 0:00:51]}  Rhe8 {[%clk 0:01:32]} 27. h3 {[%clk 0:00:46]}  b6 {[%clk 0:01:26]} 28. Rc2 {[%clk 0:00:36]}  c5 {[%clk 0:01:25]} 29. Rce2 {[%clk 0:00:34]}  Kc6 {[%clk 0:01:24]} 30. Bg1 {[%clk 0:00:34]}  a5 {[%clk 0:01:21]} 31. a4 {[%clk 0:00:33]}  Rb8 {[%clk 0:01:13]} 32. Rb1 {[%clk 0:00:31]}  b5 {[%clk 0:01:12]} 33. Ra2 {[%clk 0:00:19]}  cxd4 {[%clk 0:01:05]} 34. axb5+ {[%clk 0:00:18]}  Rxb5 {[%clk 0:01:05]} 35. Rxb5 {[%clk 0:00:17]}  Kxb5 {[%clk 0:01:06]} 36. cxd4 {[%clk 0:00:17]}  a4 {[%clk 0:01:06]} 37. Bf2 {[%clk 0:00:18]}  a3 {[%clk 0:01:06]} 38. Ra1 {[%clk 0:00:17]}  Ka4 {[%clk 0:01:06]} 39. Kc3 {[%clk 0:00:08]}  Re8 {[%clk 0:01:05]} 40. Ra2 {[%clk 0:00:05]}  Rc8 {[%clk 0:01:05]} 41. e4 {[%clk 0:00:00]}  Nd6+ {[%clk 0:01:04]} 0-1


[Site "https://www.chess.com"]

[Event "Titled Tuesday Blitz July 11 Early 2023"]
[White "Erigaisi Arjun"]
[Black "Tregubov, Pavel V."]
[WhiteFideId "35009192"]
[BlackFideId "4115341"]
[WhiteElo "3114"]
[BlackElo "2690"]
[Result "1-0"]
[Round "3"]
[TimeControl "180+2"]
[Date "2023.07.11"]
[WhiteClock "0:00:46"]
[BlackClock "0:00:01"]
[Board "2"]

1. c4 {[%clk 0:02:54]}  e5 {[%clk 0:02:59]} 2. Nc3 {[%clk 0:02:53]}  Nf6 {[%clk 0:03:00]} 3. Nf3 {[%clk 0:02:53]}  Nc6 {[%clk 0:02:59]} 4. d3 {[%clk 0:02:52]}  Bc5 {[%clk 0:02:54]} 5. Bg5 {[%clk 0:02:50]}  h6 {[%clk 0:02:52]} 6. Bh4 {[%clk 0:02:49]}  g5 {[%clk 0:02:41]} 7. Bg3 {[%clk 0:02:49]}  d6 {[%clk 0:02:42]} 8. e3 {[%clk 0:02:49]}  Bf5 {[%clk 0:02:31]} 9. a3 {[%clk 0:02:46]}  a5 {[%clk 0:02:30]} 10. Nd2 {[%clk 0:02:43]}  Qd7 {[%clk 0:01:51]} 11. h4 {[%clk 0:02:39]}  O-O-O {[%clk 0:01:34]} 12. Qa4 {[%clk 0:02:24]}  Bb6 {[%clk 0:01:28]} 13. b4 {[%clk 0:02:21]}  Kb8 {[%clk 0:01:16]} 14. Rb1 {[%clk 0:02:03]}  Rhe8 {[%clk 0:00:56]} 15. hxg5 {[%clk 0:02:00]}  hxg5 {[%clk 0:00:55]} 16. Be2 {[%clk 0:01:41]}  Rh8 {[%clk 0:00:50]} 17. Rxh8 {[%clk 0:01:29]}  Rxh8 {[%clk 0:00:50]} 18. Qb5 {[%clk 0:01:22]}  Na7 {[%clk 0:00:36]} 19. Qxd7 {[%clk 0:01:22]}  Nxd7 {[%clk 0:00:36]} 20. Nd5 {[%clk 0:01:17]}  axb4 {[%clk 0:00:30]} 21. axb4 {[%clk 0:01:17]}  Nc8 {[%clk 0:00:29]} 22. Ne4 {[%clk 0:01:12]}  Bg6 {[%clk 0:00:23]} 23. Kd2 {[%clk 0:01:10]}  g4 {[%clk 0:00:16]} 24. Nef6 {[%clk 0:00:53]}  Nxf6 {[%clk 0:00:17]} 25. Nxf6 {[%clk 0:00:54]}  c6 {[%clk 0:00:11]} 26. c5 {[%clk 0:00:52]}  Bd8 {[%clk 0:00:10]} 27. Nxg4 {[%clk 0:00:47]}  f5 {[%clk 0:00:08]} 28. Nxe5 {[%clk 0:00:47]}  Kc7 {[%clk 0:00:01]} 29. Nxg6 {[%clk 0:00:46]} 1-0


[Site "https://www.chess.com"]

[Event "Titled Tuesday Blitz July 11 Early 2023"]
[White "Lorparizangeneh, Shahin"]
[Black "Firouzja, Alireza"]
[WhiteFideId "12521604"]
[BlackFideId "12573981"]
[WhiteElo "2689"]
[BlackElo "3090"]
[Result "0-1"]
[Round "3"]
[TimeControl "180+2"]
[Date "2023.07.11"]
[WhiteClock "0:00:05"]
[BlackClock "0:00:57"]
[Board "3"]

1. e4 {[%clk 0:03:00]}  c5 {[%clk 0:03:00]} 2. Nf3 {[%clk 0:03:00]}  d6 {[%clk 0:03:00]} 3. Bc4 {[%clk 0:02:57]}  Nc6 {[%clk 0:03:00]} 4. O-O {[%clk 0:02:56]}  Nf6 {[%clk 0:03:00]} 5. d3 {[%clk 0:02:54]}  Bg4 {[%clk 0:03:00]} 6. h3 {[%clk 0:02:53]}  Bh5 {[%clk 0:03:00]} 7. g4 {[%clk 0:02:52]}  Bg6 {[%clk 0:03:01]} 8. c3 {[%clk 0:02:52]}  e6 {[%clk 0:03:00]} 9. Nh2 {[%clk 0:02:49]}  h5 {[%clk 0:02:56]} 10. g5 {[%clk 0:02:48]}  d5 {[%clk 0:02:45]} 11. Bb5 {[%clk 0:02:24]}  Nh7 {[%clk 0:02:44]} 12. f4 {[%clk 0:02:11]}  dxe4 {[%clk 0:02:43]} 13. Qa4 {[%clk 0:02:11]}  Qb6 {[%clk 0:02:33]} 14. Nd2 {[%clk 0:01:30]}  exd3 {[%clk 0:01:12]} 15. Nc4 {[%clk 0:01:28]}  Qc7 {[%clk 0:01:13]} 16. Ne5 {[%clk 0:01:16]}  Bd6 {[%clk 0:01:13]} 17. Nxg6 {[%clk 0:01:15]}  fxg6 {[%clk 0:01:13]} 18. Bxd3 {[%clk 0:01:09]}  O-O-O {[%clk 0:01:11]} 19. Qe4 {[%clk 0:00:52]}  Nxg5 {[%clk 0:01:11]} 20. Qg2 {[%clk 0:00:42]}  Nh7 {[%clk 0:01:04]} 21. Bxg6 {[%clk 0:00:40]}  Nf6 {[%clk 0:01:04]} 22. Bd2 {[%clk 0:00:37]}  Nd5 {[%clk 0:01:02]} 23. f5 {[%clk 0:00:31]}  exf5 {[%clk 0:00:59]} 24. Bxf5+ {[%clk 0:00:23]}  Kb8 {[%clk 0:00:59]} 25. Nf3 {[%clk 0:00:23]}  Bf4 {[%clk 0:00:58]} 26. Rad1 {[%clk 0:00:22]}  Bxd2 {[%clk 0:00:57]} 27. Qxd2 {[%clk 0:00:13]}  Qg3+ {[%clk 0:00:57]} 28. Kh1 {[%clk 0:00:13]}  Nde7 {[%clk 0:00:58]} 29. Qc2 {[%clk 0:00:05]}  Rxd1 {[%clk 0:00:57]} 0-1


[Site "https://www.chess.com"]

[Event "Titled Tuesday Blitz July 11 Early 2023"]
[White "Begmuratov, Alisher"]
[Black "Bluebaum, Matthias"]
[WhiteFideId "14203367"]
[BlackFideId "24651516"]
[WhiteElo "2682"]
[BlackElo "3055"]
[Result "0-1"]
[Round "3"]
[TimeControl "180+2"]
[Date "2023.07.11"]
[WhiteClock "0:00:04"]
[BlackClock "0:00:55"]
[Board "5"]

1. e4 {[%clk 0:03:00]}  e6 {[%clk 0:02:59]} 2. d4 {[%clk 0:02:59]}  d5 {[%clk 0:03:00]} 3. Nd2 {[%clk 0:03:00]}  c5 {[%clk 0:03:00]} 4. Ngf3 {[%clk 0:02:59]}  Nf6 {[%clk 0:03:00]} 5. exd5 {[%clk 0:02:58]}  Nxd5 {[%clk 0:03:01]} 6. Bb5+ {[%clk 0:02:35]}  Bd7 {[%clk 0:03:00]} 7. Bxd7+ {[%clk 0:02:35]}  Nxd7 {[%clk 0:03:00]} 8. O-O {[%clk 0:02:36]}  cxd4 {[%clk 0:03:00]} 9. Nxd4 {[%clk 0:02:35]}  Be7 {[%clk 0:03:01]} 10. c4 {[%clk 0:02:32]}  N5f6 {[%clk 0:03:00]} 11. b3 {[%clk 0:02:32]}  O-O {[%clk 0:03:00]} 12. Bb2 {[%clk 0:02:32]}  a6 {[%clk 0:03:00]} 13. Qf3 {[%clk 0:02:28]}  Qc7 {[%clk 0:03:00]} 14. Rfd1 {[%clk 0:02:26]}  Rfd8 {[%clk 0:03:00]} 15. Ne4 {[%clk 0:02:24]}  Nxe4 {[%clk 0:02:56]} 16. Qxe4 {[%clk 0:02:24]}  Bf6 {[%clk 0:02:54]} 17. Rd2 {[%clk 0:02:19]}  Nc5 {[%clk 0:02:51]} 18. Qe2 {[%clk 0:02:17]}  e5 {[%clk 0:02:43]} 19. Nf5 {[%clk 0:02:09]}  Rxd2 {[%clk 0:02:42]} 20. Qxd2 {[%clk 0:02:06]}  Rd8 {[%clk 0:02:43]} 21. Qe2 {[%clk 0:02:05]}  Qd7 {[%clk 0:02:27]} 22. Ne3 {[%clk 0:01:55]}  Qd2 {[%clk 0:02:26]} 23. Re1 {[%clk 0:01:45]}  Qxe2 {[%clk 0:02:12]} 24. Rxe2 {[%clk 0:01:46]}  Rd3 {[%clk 0:02:11]} 25. g3 {[%clk 0:01:30]}  h5 {[%clk 0:01:40]} 26. Nd5 {[%clk 0:01:22]}  Rd1+ {[%clk 0:01:40]} 27. Kg2 {[%clk 0:01:21]}  Nd3 {[%clk 0:01:41]} 28. Bc3 {[%clk 0:01:15]}  h4 {[%clk 0:01:28]} 29. gxh4 {[%clk 0:00:37]}  Bxh4 {[%clk 0:01:06]} 30. Bxe5 {[%clk 0:00:19]}  Bxf2 {[%clk 0:01:06]} 31. Rxf2 {[%clk 0:00:16]}  Nxe5 {[%clk 0:01:06]} 32. Re2 {[%clk 0:00:16]}  f6 {[%clk 0:01:05]} 33. Rc2 {[%clk 0:00:14]}  Kf7 {[%clk 0:01:00]} 34. Nf4 {[%clk 0:00:14]}  g5 {[%clk 0:00:59]} 35. Ne2 {[%clk 0:00:14]}  Ng4 {[%clk 0:00:59]} 36. Kg3 {[%clk 0:00:13]}  Ne3 {[%clk 0:00:56]} 37. Rc3 {[%clk 0:00:11]}  Nf5+ {[%clk 0:00:57]} 38. Kf3 {[%clk 0:00:11]}  Rd2 {[%clk 0:00:57]} 39. Ng3 {[%clk 0:00:09]}  Nh4+ {[%clk 0:00:55]} 40. Kg4 {[%clk 0:00:09]}  Rxh2 {[%clk 0:00:54]} 41. Rd3 {[%clk 0:00:09]}  Kg6 {[%clk 0:00:54]} 42. Rd6 {[%clk 0:00:08]}  Rg2 {[%clk 0:00:55]} 43. Kh3 {[%clk 0:00:04]}  Rxg3+ {[%clk 0:00:55]} 0-1


[Site "https://www.chess.com"]

[Event "Titled Tuesday Blitz July 11 Early 2023"]
[White "He, Anthony"]
[Black "Bobkov, Vadim"]
[WhiteFideId "2088215"]
[BlackFideId "34110876"]
[WhiteElo "2993"]
[BlackElo "2658"]
[Result "1-0"]
[Round "3"]
[TimeControl "180+2"]
[Date "2023.07.11"]
[WhiteClock "0:01:38"]
[BlackClock "0:00:00"]
[Board "10"]

1. d4 {[%clk 0:03:00]}  Nf6 {[%clk 0:02:58]} 2. Nc3 {[%clk 0:02:50]}  g6 {[%clk 0:02:47]} 3. Bf4 {[%clk 0:02:49]}  d6 {[%clk 0:02:46]} 4. e3 {[%clk 0:02:49]}  Bg7 {[%clk 0:02:47]} 5. h4 {[%clk 0:02:49]}  O-O {[%clk 0:02:37]} 6. h5 {[%clk 0:02:48]}  c5 {[%clk 0:02:09]} 7. hxg6 {[%clk 0:02:41]}  hxg6 {[%clk 0:02:01]} 8. Nf3 {[%clk 0:02:36]}  cxd4 {[%clk 0:01:58]} 9. exd4 {[%clk 0:02:37]}  Bg4 {[%clk 0:01:44]} 10. Qd2 {[%clk 0:02:34]}  Nc6 {[%clk 0:01:14]} 11. Bh6 {[%clk 0:02:29]}  Nh5 {[%clk 0:01:02]} 12. Be2 {[%clk 0:02:19]}  e5 {[%clk 0:00:54]} 13. O-O-O {[%clk 0:02:10]}  exd4 {[%clk 0:00:41]} 14. Bxg7 {[%clk 0:02:06]}  Kxg7 {[%clk 0:00:37]} 15. Nxd4 {[%clk 0:02:06]}  Bxe2 {[%clk 0:00:26]} 16. Qxe2 {[%clk 0:02:07]}  Nxd4 {[%clk 0:00:20]} 17. Rxd4 {[%clk 0:02:06]}  Qg5+ {[%clk 0:00:18]} 18. Kb1 {[%clk 0:01:49]}  Rae8 {[%clk 0:00:19]} 19. Qf3 {[%clk 0:01:46]}  Re7 {[%clk 0:00:00]} 20. Rxd6 {[%clk 0:01:38]} 1-0


[Site "https://www.chess.com"]